fUST/lending_fUST_20240519
["ID","MTS","AMOUNT","RATE_DAILY","PERIOD"]
[327421287,1716063044133,-155.26700169,6.935e-05,2]
[327421288,1716063044143,-904.71121898,6.935e-05,2]
[327421289,1716063044152,-154.94505041,6.935e-05,2]
[327421290,1716063044167,-314.65978959,6.935e-05,2]
[327421291,1716063044177,-213.51897653,6.936e-05,2]
[327421292,1716063044187,-186.07602654,6.936e-05,2]
[327421293,1716063044198,-9641.32190512,6.938e-05,2]
[327421294,1716063044208,-24900.0,7.397e-05,2]
[327421295,1716063044218,-477.27536979,9.897e-05,2]
[327421296,1716063044228,-525.64777211,9.996e-05,2]
[327421297,1716063044240,-279.36661499,9.998e-05,2]
[327421298,1716063044251,-719.48635081,9.998e-05,2]
[327421299,1716063044260,-771.85111591,0.0001,2]
[327421300,1716063044270,-9398.82663272,0.0001,2]
[327421301,1716063044280,-417.06273246,0.00010741,2]
[327421302,1716063044290,-4222.10020806,0.0001076,2]
[327421303,1716063044301,-249.834905,0.00010959,2]
[327421304,1716063044311,-249.834905,0.00010959,2]
[327421305,1716063044321,-249.834905,0.00010959,2]
[327421306,1716063044332,-249.834905,0.00010959,2]
[327421307,1716063044342,-757.54,0.00010959,2]
[327421308,1716063044351,-155.28330587,0.00011451,2]
[327421309,1716063044362,-251.87711455,0.00012175,2]
[327421310,1716063044372,-249.834905,0.00012176,2]
[327421311,1716063044382,-249.834905,0.00012176,2]
[327421312,1716063044392,-652.92143506,0.00012176,2]
[327421313,1716063044402,-201.49220439,0.00012796,2]
[327421314,1716063044411,-157.91467169,0.00012797,2]
[327421315,1716063044421,-190.04634717,0.000128,2]
[327421316,1716063044431,-1211.760501,0.000129,2]
[327421317,1716063044582,-151.0,0.00013699,2]
[327421318,1716063044592,-151.0,0.00013699,2]
[327421319,1716063044603,-151.0,0.00013699,2]
[327421320,1716063044613,-151.0,0.00013699,2]
[327421321,1716063044622,-151.0,0.00013699,2]
[327421322,1716063044632,-221.638524,0.00013699,2]
[327421323,1716063044642,-221.638524,0.00013699,2]
[327421324,1716063044651,-221.638524,0.00013699,2]
[327421325,1716063044660,-221.638524,0.00013699,2]
[327421326,1716063044670,-158.59567,0.00013699,2]
[327421327,1716063044679,-151.0,0.00013699,2]
[327421328,1716063044689,-151.0,0.00013699,2]
[327421329,1716063044698,-151.0,0.00013699,2]
[327421330,1716063044708,-151.0,0.00013699,2]
[327421331,1716063044717,-151.0,0.00013699,2]
[327421332,1716063044727,-151.0,0.00013699,2]
[327421333,1716063044736,-151.0,0.00013699,2]
[327421334,1716063044746,-151.0,0.00013699,2]
[327421335,1716063044755,-151.0,0.00013699,2]
[327421336,1716063044764,-151.0,0.00013699,2]
[327421337,1716063044774,-151.0,0.00013699,2]
[327421338,1716063044783,-151.0,0.00013699,2]
[327421339,1716063044793,-151.0,0.00013699,2]
[327421340,1716063044802,-151.0,0.00013699,2]
[327421341,1716063044811,-151.0,0.00013699,2]
[327421342,1716063044823,-312.540514,0.00013699,2]
[327421343,1716063044834,-312.540514,0.00013699,2]
[327421344,1716063044845,-312.540514,0.00013699,2]
[327421345,1716063044856,-312.540514,0.00013699,2]
[327421346,1716063044866,-312.540514,0.00013699,2]
[327421347,1716063044876,-312.540514,0.00013699,2]
[327421348,1716063044886,-151.0,0.00013699,2]
[327421349,1716063044896,-218.664766,0.00013699,2]
[327421350,1716063044906,-637.932278,0.00013699,2]
[327421351,1716063044917,-637.932278,0.00013699,2]
[327421352,1716063044927,-637.932278,0.00013699,2]
[327421353,1716063044938,-637.932278,0.00013699,2]
[327421354,1716063044947,-637.932278,0.00013699,2]
[327421355,1716063044957,-637.932278,0.00013699,2]
[327421356,1716063044967,-223.077089,0.00013699,2]
[327421357,1716063044976,-223.077089,0.00013699,2]
[327421358,1716063044986,-223.077089,0.00013699,2]
[327421359,1716063044996,-223.077089,0.00013699,2]
[327421360,1716063045006,-223.077089,0.00013699,2]
[327421361,1716063045016,-223.077089,0.00013699,2]
[327421362,1716063045028,-151.0,0.00013699,2]
[327421363,1716063045039,-151.0,0.00013699,2]
[327421364,1716063045050,-151.0,0.00013699,2]
[327421365,1716063045059,-151.0,0.00013699,2]
[327421366,1716063045069,-151.0,0.00013699,2]
[327421367,1716063045078,-151.0,0.00013699,2]
[327421368,1716063045088,-151.0,0.00013699,2]
[327421369,1716063045097,-151.0,0.00013699,2]
[327421370,1716063045108,-151.0,0.00013699,2]
[327421371,1716063045118,-262.747098,0.00013699,2]
[327421372,1716063045128,-151.0,0.00013699,2]
[327421373,1716063045139,-183.213912,0.00013699,2]
[327421374,1716063045150,-183.213912,0.00013699,2]
[327421375,1716063045164,-283.58690319,0.000137,2]
[327421376,1716063045174,-150.0,0.00013921,2]
[327421377,1716063045184,-497.856,0.00013921,2]
[327421378,1716063045195,-154.464,0.00013921,2]
[327421379,1716063045204,-1211.760501,0.00014197,2]
[327421380,1716063045214,-151.0,0.00014198,2]
[327421381,1716063045224,-444.1899476,0.00014555,2]
[327421382,1716063045233,-291.1899476,0.00014555,2]
[327421383,1716063045245,-291.1899476,0.00014555,2]
[327421384,1716063045257,-151.0,0.00014555,2]
[327421385,1716063045266,-154.82968734,0.00015,2]
[327421386,1716063045275,-3699.56949019,0.00015,2]
[327421387,1716063045285,-1149.07076386,0.00015,2]
[327421388,1716063045294,-2107.5414282,0.00015,2]
[327421389,1716063045305,-942.53705457,0.00015,2]
[327421390,1716063045314,-151.0,0.00015,2]
[327421391,1716063045323,-151.0,0.00015,2]
[327421392,1716063045333,-151.0,0.00015,2]
[327421393,1716063045342,-637.932278,0.00015,2]
[327421394,1716063045352,-637.932278,0.00015,2]
[327421395,1716063045361,-223.077089,0.00015,2]
[327421396,1716063045371,-223.077089,0.00015,2]
[327421397,1716063045381,-151.0,0.00015024,2]
[327421398,1716063045391,-151.0,0.00015024,2]
[327421399,1716063045400,-151.0,0.00015024,2]
[327421400,1716063045410,-249.834905,0.00015024,2]
[327421401,1716063045420,-312.540514,0.00015024,2]
[327421402,1716063045429,-249.834905,0.00015024,2]
[327421403,1716063045439,-312.540514,0.00015024,2]
[327421404,1716063045449,-323.9,0.00015027,3]
[327421405,1716063045459,-323.9,0.00015027,2]
[327421406,1716063045469,-150.0,0.00015027,2]
[327421407,1716063045478,-150.0,0.00015027,3]
[327421408,1716063045488,-323.9,0.00015255,2]
[327421409,1716063045498,-150.0,0.00015255,2]
[327421410,1716063045507,-291.1899476,0.00015377,2]
[327421411,1716063045519,-332.7638611,0.00015377,2]
[327421412,1716063045528,-291.1899476,0.00015377,2]
[327421413,1716063045538,-291.1899476,0.00015377,2]
[327421414,1716063045548,-291.1899476,0.00015377,2]
[327421415,1716063045558,-291.1899476,0.00015377,2]
[327421416,1716063045568,-291.1899476,0.00015377,2]
[327421417,1716063045577,-504.2782149,0.00015377,2]
[327421418,1716063045587,-183.213912,0.00015377,2]
[327421419,1716063045596,-183.213912,0.00015377,2]
[327421420,1716063045606,-221.638524,0.00015377,2]
[327421421,1716063045616,-221.638524,0.00015377,2]
[327421422,1716063045626,-408.6720691,0.00015396,2]
[327421423,1716063045636,-151.0,0.0001548,2]
[327421424,1716063045646,-323.9,0.00015483,2]
[327421425,1716063045658,-150.0,0.00015483,2]
[327421426,1716063045668,-151.0,0.00015492,2]
[327421427,1716063045677,-151.0,0.00015709,2]
[327421428,1716063045686,-323.9,0.00015711,2]
[327421429,1716063045696,-150.0,0.00015711,2]
[327421430,1716063045706,-323.9,0.00015939,2]
[327421431,1716063045716,-1270.0,0.00016,2]
[327421432,1716063045726,-7967.64444353,0.00016,2]
[327421433,1716063045736,-151.0,0.00016,2]
[327421434,1716063045745,-151.0,0.00016,2]
[327421435,1716063045755,-151.0,0.00016,2]
[327421436,1716063045765,-151.0,0.00016,2]
[327421437,1716063045775,-151.0,0.00016,2]
[327421438,1716063045785,-151.0,0.00016,2]
[327421439,1716063045794,-249.834905,0.00016,2]
[327421440,1716063045804,-312.540514,0.00016,2]
[327421441,1716063045814,-249.834905,0.00016,2]
[327421442,1716063045824,-312.540514,0.00016,2]
[327421443,1716063045834,-637.932278,0.00016,2]
[327421444,1716063045843,-637.932278,0.00016,2]
[327421445,1716063045853,-223.077089,0.00016,2]
[327421446,1716063045863,-223.077089,0.00016,2]
[327421447,1716063045873,-88888.0,0.00016036,2]
[327421448,1716063045883,-221.638524,0.00016036,2]
[327421449,1716063045894,-221.638524,0.00016036,2]
[327421450,1716063045904,-151.0,0.00016036,2]
[327421451,1716063045915,-151.0,0.00016036,2]
[327421452,1716063045924,-151.0,0.00016036,2]
[327421453,1716063045934,-151.0,0.00016036,2]
[327421454,1716063045943,-249.834905,0.00016036,2]
[327421455,1716063045953,-249.834905,0.00016036,2]
[327421456,1716063045962,-312.540514,0.00016036,2]
[327421457,1716063045972,-312.540514,0.00016036,2]
[327421458,1716063045982,-637.932278,0.00016036,2]
[327421459,1716063045991,-637.932278,0.00016036,2]
[327421460,1716063046001,-223.077089,0.00016036,2]
[327421461,1716063046011,-223.077089,0.00016036,2]
[327421462,1716063046021,-151.0,0.00016036,2]
[327421463,1716063046030,-151.0,0.00016036,2]
[327421464,1716063046040,-183.213912,0.00016075,2]
[327421465,1716063046049,-183.213912,0.00016075,2]
[327421466,1716063046061,-183.213912,0.00016136,2]
[327421467,1716063046071,-183.213912,0.00016136,2]
[327421468,1716063046082,-151.0,0.00016136,2]
[327421469,1716063046093,-151.0,0.00016136,2]
[327421470,1716063046104,-155.28330587,0.00016136,2]
[327421471,1716063046114,-323.9,0.00016167,2]
[327421472,1716063046125,-585.57542267,0.00016231,2]
[327421473,1716063046135,-25052.03655261,0.00016236,2]
[327421477,1716063046595,-3985.88239274,6.84e-05,2]
[327421478,1716063046702,-254.26654517,6.84e-05,2]
[327421482,1716063180851,499.6,0.000265,120]
[327421515,1716064232125,-1403.26792763,6.73e-05,2]
[327421516,1716064232135,-909.64823199,6.731e-05,2]
[327421517,1716064232144,-230.80285918,6.731e-05,2]
[327421518,1716064232153,-154.82968734,6.732e-05,2]
[327421519,1716064232162,-1043.25678867,6.732e-05,2]
[327421520,1716064232171,-803.39175304,6.733e-05,2]
[327421521,1716064232181,-7894.33531896,6.733e-05,2]
[327421522,1716064232190,-35610.76093625,6.735e-05,2]
[327421523,1716064232199,-236.5182214,6.754e-05,2]
[327421524,1716064232208,-1417.90635911,6.758e-05,2]
[327421525,1716064232217,-8909.50789965,6.834e-05,2]
[327421526,1716064232227,-3558.68783748,6.84e-05,2]
[327421676,1716064240190,-59402.56585443,6.732e-05,2]
[327421679,1716064240203,-3896.56535952,6.84e-05,2]
[327421683,1716064240219,-13871.20302977,7.397e-05,2]
[327422189,1716064245972,-531.6028881,7.397e-05,2]
[327422191,1716064245984,-2463.76274976,7.397e-05,2]
[327425558,1716065022567,190.89188591,0.00026235,120]
[327425590,1716065432226,-154.82968734,7.352e-05,2]
[327425593,1716065432236,-492.86440031,7.375e-05,2]
[327425595,1716065432248,-230.80285918,7.377e-05,2]
[327425597,1716065432257,-154.82968734,7.379e-05,2]
[327425599,1716065432266,-154.82968734,7.379e-05,2]
[327425601,1716065432275,-4433.0511395,7.39e-05,2]
[327425648,1716065446108,-506.05501155,7.39e-05,2]
[327425749,1716066632299,-238.75882037,7.343e-05,2]
[327425750,1716066632308,-209.17277235,7.344e-05,2]
[327425751,1716066632326,-313.44013413,7.344e-05,2]
[327425752,1716066632335,-154.82968734,7.345e-05,2]
[327425753,1716066632344,-154.82968734,7.388e-05,2]
[327425754,1716066632353,-154.82968734,7.388e-05,2]
[327425755,1716066632363,-61.18456071,7.388e-05,2]
[327425871,1716067561989,2304.8458925,5.362e-05,2]
[327425872,1716067642459,2089.63547188,5.362e-05,2]
[327425873,1716067642755,-154.81422293,6.344e-05,2]
[327425874,1716067642777,-452.52831116,6.345e-05,2]
[327425875,1716067642802,-154.81422293,6.345e-05,2]
[327425876,1716067642823,-154.81422293,6.345e-05,2]
[327425877,1716067642847,-230.80285918,6.346e-05,2]
[327425878,1716067642872,-330.96158487,6.347e-05,2]
[327425879,1716067642895,-803.39175304,6.348e-05,2]
[327425880,1716067642918,-719.96474571,6.348e-05,2]
[327425881,1716067642940,-162.80627923,6.349e-05,2]
[327425882,1716067642966,-154.81422293,6.35e-05,2]
[327425883,1716067656377,2089.63547188,5.362e-05,2]
[327425884,1716067670116,3939.80260321,5.362e-05,2]
[327425885,1716067670279,8040.41078562,5.362e-05,2]
[327425886,1716067670311,4166.52434437,5.362e-05,2]
[327425887,1716067678474,697.36236629,5.362e-05,2]
[327425888,1716067686097,16146.7377332,5.362e-05,2]
[327425889,1716067702107,3989.37555614,5.362e-05,2]
[327425890,1716067765155,-8741.29863226,5.359e-05,2]
[327425953,1716067832629,-525.64777211,5.303e-05,2]
[327425955,1716067832638,-1060.56840663,5.304e-05,2]
[327425957,1716067832650,-278.35954238,5.304e-05,2]
[327425968,1716067832760,-54.02865113,5.305e-05,2]
[327425970,1716067832774,-882.23363277,5.305e-05,2]
[327425972,1716067832783,-316.09468062,5.356e-05,2]
[327425974,1716067832792,-217.61292911,5.356e-05,2]
[327425976,1716067832805,-600.59008021,5.356e-05,2]
[327425978,1716067832814,-236.48555321,5.356e-05,2]
[327425980,1716067832823,-312.7134333,5.357e-05,2]
[327425982,1716067832832,-309.5048201,5.357e-05,2]
[327425984,1716067832841,-26207.82489209,5.357e-05,2]
[327425986,1716067832850,-35173.75839288,5.358e-05,2]
[327425988,1716067832862,-250.0,5.358e-05,2]
[327425990,1716067832873,-718.17580696,5.358e-05,2]
[327426091,1716067838564,-4947.35779506,5.356e-05,2]
[327426232,1716067843663,-250.49178244,5.302e-05,2]
[327426233,1716067843708,-296.25494218,5.302e-05,2]
[327426234,1716067843717,-19800.33332309,5.356e-05,2]
[327426235,1716067843729,-9399.79890887,5.356e-05,2]
[327426236,1716067843845,-216.1907631,5.356e-05,2]
[327426237,1716067843857,-302.00997705,5.356e-05,2]
[327426271,1716068603978,2259.4949604,4.304e-05,2]
[327426273,1716068818724,-7894.33531896,5.248e-05,2]
[327426274,1716068818744,-846.96704461,5.248e-05,2]
[327426305,1716069031857,-386.01217285,5.232e-05,2]
[327426311,1716069031910,-7508.32314611,5.232e-05,2]
[327426314,1716069031919,-1403.26792763,5.233e-05,2]
[327426315,1716069031928,-154.82968734,5.233e-05,2]
[327426317,1716069031939,-35610.76093625,5.233e-05,2]
[327426318,1716069031948,-803.39175304,5.234e-05,2]
[327426320,1716069031958,-370.98329006,5.234e-05,2]
[327426321,1716069031969,-26207.82489209,5.234e-05,2]
[327426322,1716069031979,-909.64823199,5.235e-05,2]
[327426323,1716069031988,-230.80285918,5.235e-05,2]
[327426324,1716069031998,-230.80285918,5.235e-05,2]
[327426325,1716069032008,-2634.32657847,5.235e-05,2]
[327426326,1716069032018,-492.86440031,5.236e-05,2]
[327426327,1716069032028,-658.15339953,5.241e-05,2]
[327426328,1716069032037,-564.60164656,5.248e-05,2]
[327426329,1716069032047,-236.5182214,5.272e-05,2]
[327426330,1716069032056,-8909.50789965,5.278e-05,2]
[327426331,1716069032066,-1338.92794901,5.282e-05,2]
[327426332,1716069032076,-59402.56585443,5.284e-05,2]
[327426333,1716069032085,-269.11819625,5.286e-05,2]
[327426334,1716069032095,-261.10136921,5.291e-05,2]
[327426335,1716069032104,-794.61378853,5.351e-05,2]
[327426373,1716069040221,-285.03925166,5.232e-05,2]
[327426374,1716069040231,-394.25050575,5.351e-05,2]
[327426405,1716069043137,-2950.4,5.351e-05,2]
[327426406,1716069043149,-2918.36860572,5.351e-05,2]
[327426407,1716069043159,-151.0,5.351e-05,2]
[327426408,1716069043169,-3558.68783748,5.356e-05,2]
[327426409,1716069043178,-379.09303098,5.357e-05,2]
[327426410,1716069043188,-1904.80074983,5.362e-05,2]
[327426411,1716069043199,-4725.10773749,5.362e-05,2]
[327426412,1716069043218,-90.50241198,5.362e-05,2]
[327426413,1716069043227,-151.0,5.362e-05,2]
[327426414,1716069043237,-528.43613852,6.353e-05,2]
[327426415,1716069043247,-419.79910103,6.357e-05,2]
[327426420,1716069046088,-588.66521615,5.35e-05,2]
[327426421,1716069046099,-180.47780374,5.35e-05,2]
[327426422,1716069046110,-299.68724978,6.357e-05,2]
[327426423,1716069046120,-187.38293399,6.357e-05,2]
[327426424,1716069046130,-167.62277945,6.357e-05,2]
[327426425,1716069046140,-155.0826448,6.357e-05,2]
[327426426,1716069046149,-349.26632079,6.357e-05,2]
[327426427,1716069046158,-309.62844586,6.357e-05,2]
[327426429,1716069046167,-154.84515175,6.357e-05,2]
[327426431,1716069046177,-319.00156437,6.357e-05,2]
[327426432,1716069046186,-194.45514723,6.358e-05,2]
[327426434,1716069046196,-1094.99548197,6.361e-05,2]
[327426436,1716069046205,-457.90216994,6.363e-05,2]
[327426438,1716069046215,-9341.44736336,6.364e-05,2]
[327426591,1716070238365,-410.45768134,6.363e-05,2]
[327426592,1716070238376,-218.07994629,6.364e-05,2]
[327426593,1716070238385,-513.4844886,6.367e-05,2]
[327426594,1716070238394,-725.1341485,7.294e-05,2]
[327426595,1716070238406,-7169.20117046,7.294e-05,2]
[327426596,1716070238415,-24078.58149943,7.295e-05,2]
[327426597,1716070238426,-3368.57495305,7.295e-05,2]
[327426662,1716071377127,500.0,0.00025,60]
[327426791,1716071433183,527.91523523,0.00025,60]
[327427212,1716071446381,-504.28472031,7.222e-05,2]
[327427213,1716071446390,-495.71527969,7.293e-05,2]
[327427425,1716072638605,-230.80285918,6.126e-05,2]
[327427426,1716072638615,-754.66714082,6.127e-05,2]
[327427830,1716072643720,-1142.9198399,6.127e-05,2]
[327427832,1716072643730,-1403.26792763,6.128e-05,2]
[327427834,1716072643740,-1897.58698072,6.13e-05,2]
[327427836,1716072643749,-985.47,6.292e-05,2]
[327427838,1716072643759,-35610.76093625,7.277e-05,2]
[327427840,1716072643768,-59402.56585443,7.278e-05,2]
[327427842,1716072643778,-316.15927372,7.283e-05,2]
[327427844,1716072643788,-1094.99548197,7.285e-05,2]
[327427846,1716072643798,-675.83241571,7.288e-05,2]
[327427848,1716072643807,-525.64777211,7.29e-05,2]
[327427850,1716072643817,-154.83913523,7.291e-05,2]
[327427852,1716072643826,-154.83319739,7.292e-05,2]
[327427854,1716072643836,-281.54915077,7.293e-05,2]
[327427856,1716072643845,-364.69742493,7.293e-05,2]
[327427858,1716072643855,-301.72572743,7.375e-05,2]
[327427860,1716072643864,-189.01878268,7.376e-05,2]
[327427861,1716072643874,-160.7705336,7.377e-05,2]
[327427864,1716072643883,-196.92146008,7.377e-05,2]
[327427865,1716072643893,-199.28086423,7.377e-05,2]
[327427867,1716072643902,-155.6139938,7.377e-05,2]
[327427869,1716072643911,-157.27582338,7.377e-05,2]
[327427872,1716072643921,-180.75068015,7.378e-05,2]
[327427873,1716072643930,-301.09817763,7.378e-05,2]
[327427876,1716072643939,-206.55656569,7.379e-05,2]
[327427877,1716072643949,-157.68007744,7.379e-05,2]
[327427880,1716072643958,-861.55431097,7.384e-05,2]
[327427881,1716072643968,-1475.25957385,7.386e-05,2]
[327427882,1716072643977,-238.44603867,7.388e-05,2]
[327427883,1716072643987,-255.6807285,7.388e-05,2]
[327427884,1716072643996,-221.01268879,7.388e-05,2]
[327427885,1716072644005,-1998.32943601,7.388e-05,2]
[327427887,1716072644015,-154.82968734,7.389e-05,2]
[327427888,1716072644024,-154.82968734,7.389e-05,2]
[327427889,1716072644033,-256.29733471,7.392e-05,2]
[327427890,1716072644043,-3865.84742385,7.397e-05,2]
[327435860,1716072934928,-289.39991776,7.25e-05,2]
[327435861,1716072934952,-403.42777625,7.323e-05,2]
[327435862,1716072934976,-281.54915077,7.397e-05,2]
[327435863,1716072935000,-167.55903202,7.397e-05,2]
[327435864,1716072935024,-12598.0641232,8.169e-05,2]
[327435934,1716073839049,-258.55454263,7.397e-05,2]
[327435935,1716073839058,-2103.15182917,8.086e-05,2]
[327435936,1716073839068,-322.742221,8.087e-05,2]
[327435937,1716073839078,-281.54915077,8.169e-05,2]
[327435938,1716073839087,-186.83038505,8.172e-05,2]
[327435939,1716073839097,-629.24141497,8.787e-05,2]
[327436001,1716073841216,-10053.37796091,8.787e-05,2]
[327436003,1716073841229,-2163.43126643,8.787e-05,2]
[327436282,1716073844102,-332.87073172,8.699e-05,2]
[327436284,1716073844112,-656.1819386,8.787e-05,2]
[327436301,1716073844272,-45900.33327352,8.787e-05,2]
[327436303,1716073844284,-35610.76093625,8.788e-05,2]
[327436306,1716073844295,-24900.0,8.792e-05,2]
[327436307,1716073844304,-582.0718,8.8e-05,2]
[327436309,1716073844315,-408.5227382,8.848e-05,2]
[327436311,1716073844324,-343.5783905,8.999e-05,2]
[327436313,1716073844333,-250.87859567,9e-05,2]
[327436315,1716073844342,-317.4669378,9.041e-05,2]
[327436317,1716073844351,-258.55454262,9.313e-05,2]
[327436319,1716073844360,-312.2224157,9.67e-05,2]
[327436321,1716073844370,-218.7763927,9.997e-05,2]
[327436323,1716073844380,-771.85111591,0.0001,2]
[327436325,1716073844390,-9398.82663272,0.0001,2]
[327436327,1716073844399,-1450.46017766,0.0001,2]
[327436329,1716073844408,-495.0,0.00010135,2]
[327436331,1716073844418,-150.0,0.00010135,2]
[327436333,1716073844428,-4222.10020806,0.00010812,2]
[327436335,1716073844437,-417.06273246,0.00010883,2]
[327436337,1716073844447,-845.45,0.00010959,2]
[327436339,1716073844456,-704.54,0.00010959,2]
[327436341,1716073844465,-587.12,0.00010959,2]
[327436343,1716073844474,-489.26,0.00010959,2]
[327436345,1716073844483,-407.72,0.00010959,2]
[327436347,1716073844492,-339.77,0.00010959,2]
[327436350,1716073844501,-283.14,0.00010959,2]
[327436353,1716073844510,-235.95,0.00010959,2]
[327436355,1716073844520,-196.62,0.00010959,2]
[327436357,1716073844529,-163.85,0.00010959,2]
[327436359,1716073844539,-819.29,0.00010959,2]
[327436361,1716073844549,-151.0,0.00010959,2]
[327436363,1716073844558,-151.0,0.00010959,2]
[327436365,1716073844567,-151.0,0.00010959,2]
[327436367,1716073844577,-1459.0352,0.00010959,2]
[327436369,1716073844586,-1459.0352,0.00010959,2]
[327436371,1716073844595,-151.0,0.00010959,2]
[327436373,1716073844605,-151.0,0.00010959,2]
[327436376,1716073844617,-153.0,0.00010964,2]
[327436378,1716073844625,-296.9359588,0.00010964,2]
[327436380,1716073844634,-540.8911242,0.00010964,2]
[327436382,1716073844644,-153.0,0.00010964,2]
[327436384,1716073844653,-153.0,0.00010964,2]
[327436386,1716073844662,-153.0,0.00010964,2]
[327436388,1716073844671,-306.0,0.00010964,2]
[327436390,1716073844681,-258.55454262,0.00011128,2]
[327436392,1716073844691,-306.0,0.00011772,2]
[327436394,1716073844700,-1459.0352,0.00012593,2]
[327436396,1716073844709,-1459.0352,0.00012593,2]
[327436398,1716073844718,-151.0,0.00012593,2]
[327436399,1716073844727,-151.0,0.00012593,2]
[327436402,1716073844736,-204.3666626,0.00012593,2]
[327436404,1716073844746,-291.1899476,0.00012593,2]
[327436405,1716073844755,-204.3666626,0.00012593,2]
[327436408,1716073844767,-153.0,0.00012593,2]
[327436410,1716073844776,-153.0,0.00012593,2]
[327436412,1716073844785,-291.1899476,0.00012593,2]
[327436414,1716073844795,-204.3666626,0.00012593,2]
[327436415,1716073844804,-291.1899476,0.00012593,2]
[327436418,1716073844813,-204.3666626,0.00012593,2]
[327436419,1716073844823,-153.0,0.00012593,2]
[327436422,1716073844832,-291.1899476,0.00012593,2]
[327436423,1716073844842,-204.3666626,0.00012593,2]
[327436426,1716073844851,-153.0,0.00012593,2]
[327436427,1716073844861,-153.0,0.00012593,2]
[327436430,1716073844871,-153.0,0.00012593,2]
[327436431,1716073844880,-153.0,0.00012593,2]
[327436433,1716073844890,-153.0,0.00012593,2]
[327436435,1716073844899,-258.55454262,0.00013044,2]
[327436438,1716073844908,-150.0,0.00013135,2]
[327436439,1716073844918,-151.0,0.00013415,2]
[327436442,1716073844927,-151.0,0.00013415,2]
[327436444,1716073844936,-152.160014,0.00013699,2]
[327436446,1716073844946,-152.160014,0.00013699,2]
[327436447,1716073844955,-152.160014,0.00013699,2]
[327436449,1716073844964,-152.160014,0.00013699,2]
[327436451,1716073844973,-151.0,0.00013699,2]
[327436453,1716073844983,-151.0,0.00013699,2]
[327436455,1716073844992,-396.2298752,0.00013699,2]
[327436457,1716073845002,-265.431074,0.00013699,2]
[327436459,1716073845012,-265.431074,0.00013699,2]
[327436461,1716073845021,-151.0,0.00013699,2]
[327436463,1716073845031,-151.0,0.00013699,2]
[327436466,1716073845040,-151.0,0.00013699,2]
[327436467,1716073845050,-151.0,0.00013699,2]
[327436469,1716073845059,-151.0,0.00013699,2]
[327436471,1716073845069,-151.0,0.00013699,2]
[327436473,1716073845078,-151.0,0.00013699,2]
[327436475,1716073845088,-151.0,0.00013699,2]
[327436478,1716073845098,-1438.699193,0.00013699,2]
[327436480,1716073845107,-1438.699193,0.00013699,2]
[327436481,1716073845116,-1438.699193,0.00013699,2]
[327436483,1716073845126,-151.0,0.00013699,2]
[327436486,1716073845135,-151.0,0.00013699,2]
[327436487,1716073845144,-2090.016134,0.00013699,2]
[327436488,1716073845155,-2090.016134,0.00013699,2]
[327436489,1716073845164,-2090.016134,0.00013699,2]
[327436490,1716073845173,-2090.016134,0.00013699,2]
[327436491,1716073845182,-966.320445,0.00013699,2]
[327436492,1716073845192,-966.320445,0.00013699,2]
[327436494,1716073845201,-151.0,0.00013699,2]
[327436496,1716073845211,-151.0,0.00013699,2]
[327436498,1716073845220,-966.320445,0.00013699,2]
[327436500,1716073845229,-966.320445,0.00013699,2]
[327436502,1716073845238,-151.0,0.00013699,2]
[327436504,1716073845247,-151.0,0.00013699,2]
[327436506,1716073845257,-172.765204,0.00013699,2]
[327436508,1716073845266,-205.480887,0.00013699,2]
[327436510,1716073845279,-205.480887,0.00013699,2]
[327436512,1716073845288,-205.480887,0.00013699,2]
[327436514,1716073845297,-205.480887,0.00013699,2]
[327436516,1716073845306,-151.0,0.00013699,2]
[327436518,1716073845317,-151.0,0.00013699,2]
[327436520,1716073845327,-923.189157,0.00013699,2]
[327436522,1716073845336,-923.189157,0.00013699,2]
[327436524,1716073845345,-923.189157,0.00013699,2]
[327436526,1716073845357,-923.189157,0.00013699,2]
[327436528,1716073845366,-151.0,0.00013699,2]
[327436530,1716073845375,-151.0,0.00013699,2]
[327436532,1716073845384,-151.0,0.00013699,2]
[327436534,1716073845394,-151.0,0.00013699,2]
[327436536,1716073845403,-151.0,0.00013699,2]
[327436538,1716073845412,-151.0,0.00013699,2]